bitfinex-derivatives/quotes_ETHF0:USTF0_20230401
["timestamp","ask_amount","ask_price","bid_price","bid_amount"]
[1680333670384,0.04737042,1820.9,1820.8,4.2078]
[1680333674488,0.04737042,1820.9,1820.8,45.0078]
[1680333674893,0.90966121,1820.9,1820.8,41.8]
[1680333675077,0.04737042,1820.9,1820.8,41.8]
[1680333675482,0.90966121,1820.9,1820.8,41.8]
[1680333675685,0.04737042,1820.9,1820.8,41.8]
[1680333675994,0.90966121,1820.9,1820.8,41.8]
[1680333676388,0.90966121,1820.9,1820.8,40.8]
[1680333676793,0.04737042,1820.9,1820.8,40.8]
[1680333677291,0.90966121,1820.9,1820.8,40.8]
[1680333679385,0.04737042,1820.9,1820.8,40.8]
[1680333681190,0.04737042,1820.9,1820.8,41.892]
[1680333681494,0.04737042,1820.9,1820.8,45.9585734]
[1680333681691,0.04737042,1820.9,1820.8,45.0998]
[1680333682086,0.86229079,1821.1,1820.8,45.9585734]
[1680333682286,0.86229079,1821.1,1820.9,1.0]
[1680333684192,1.40840203,1821.3,1821.0,4.3068]
[1680333684391,1.40840203,1821.3,1821.2,3.2078]
[1680333684993,0.86229079,1821.3,1821.2,3.2078]
[1680333687091,0.86229079,1821.3,1821.2,4.3068]
[1680333687594,0.86229079,1821.4,1821.2,4.3068]
[1680333687801,0.86229079,1821.5,1821.2,4.3068]
[1680333688099,0.86229079,1821.5,1821.3,1.0]
[1680333689996,0.86229079,1821.5,1821.3,41.8]
[1680333691205,2.49673817,1821.6,1821.3,41.8]
[1680333692406,1.95129079,1821.6,1821.3,41.8]
[1680333692604,0.86229079,1821.6,1821.4,1.092]
[1680333692803,0.86229079,1821.6,1821.5,1.0]
[1680333692999,0.86229079,1821.7,1821.5,1.0]
[1680333693302,0.86229079,1821.6,1821.5,1.0]
[1680333693508,0.86229079,1821.7,1821.5,1.0]
[1680333695409,0.86229079,1821.7,1821.6,40.8]
[1680333697604,5.77438812,1821.8,1821.6,40.8]
[1680333697914,4.62353862,1821.8,1821.6,40.8]
[1680333698911,1.41573862,1821.8,1821.6,44.0078]
[1680333699614,1.41573862,1821.8,1821.7,0.04922199]
[1680333703605,0.81573862,1821.8,1821.7,1.04922199]
[1680333704006,1.097,1821.9,1821.7,1.04922199]
[1680333704204,1.63698026,1821.9,1821.7,0.04922199]
[1680333704806,1.63698026,1821.9,1821.7,1.04922199]
[1680333705312,1.63698026,1821.9,1821.7,0.04922199]
[1680333705516,1.63698026,1821.9,1821.7,1.04922199]
[1680333707014,0.53998026,1821.9,1821.7,1.04922199]
[1680333707308,1.096,1822.0,1821.7,1.04922199]
[1680333710212,1.099,1821.9,1821.7,0.04922199]
[1680333711010,1.099,1821.9,1821.8,3.2078]
[1680333714718,1.099,1821.9,1821.8,0.08853047]
[1680333715217,1.099,1821.9,1821.6,44.0078]
[1680333715420,1.099,1821.9,1821.7,1.0]
[1680333715615,1.099,1821.9,1821.6,44.0078]
[1680333716215,1.099,1821.9,1821.7,1.0]
[1680333717923,1.099,1821.9,1821.6,44.0078]
[1680333718823,1.099,1821.9,1821.7,1.0]
[1680333720318,1.099,1821.9,1821.8,3.2078]
[1680333720527,1.095,1822.1,1821.8,3.2078]
[1680333720717,1.095,1822.1,1821.9,1.0]
[1680333721331,1.095,1822.1,1821.8,3.2078]
[1680333727436,0.821,1822.0,1821.8,3.2078]
[1680333729737,0.821,1822.0,1821.9,0.08668638]
[1680333731837,0.823,1822.0,1821.9,0.08668638]
[1680333732037,1.823,1822.0,1821.9,0.08668638]
[1680333732335,1.823,1822.0,1821.6,44.0078]
[1680333732537,0.821,1821.8,1821.6,44.0078]
[1680333735037,0.815,1821.7,1821.6,3.2078]
[1680333735234,1.635,1821.7,1821.6,3.2078]
[1680333736937,0.82,1821.7,1821.6,3.2078]
[1680333738040,0.82,1821.7,1821.4,44.8665734]
[1680333738343,0.82,1821.6,1821.4,44.0078]
[1680333739139,0.82,1821.6,1821.4,44.8665734]
[1680333740947,0.82,1821.6,1821.4,44.0078]
[1680333741744,0.82,1821.6,1821.4,44.8665734]
[1680333744651,0.82,1821.6,1821.5,0.08482474]
[1680333744947,0.82,1821.6,1821.5,1.08482474]
[1680333745151,0.82,1821.6,1821.5,0.08482474]
[1680333747439,1.9738495,1821.8,1821.5,0.08482474]
[1680333747749,1.9738495,1821.8,1821.6,3.2078]
[1680333748349,0.823,1821.8,1821.7,1.0]
[1680333749353,0.823,1821.8,1821.6,5.0665734]
[1680333749648,1.1508495,1821.9,1821.7,1.0]
[1680333750151,2.50994174,1822.0,1821.8,3.2078]
[1680333750347,1.1508495,1821.9,1821.8,3.2078]
[1680333752154,0.5751296,1821.9,1821.8,4.0665734]
[1680333752356,0.57515951,1821.9,1821.8,3.2078]
[1680333752547,0.57515951,1821.9,1821.8,4.0665734]
[1680333754658,0.57515951,1821.9,1821.8,5.0665734]
[1680333755050,0.57515951,1821.9,1821.8,4.2078]
[1680333755858,0.57515951,1821.9,1821.8,5.0665734]
[1680333756153,0.57515951,1821.9,1821.8,4.2078]
[1680333758562,0.57515951,1821.9,1821.8,5.0665734]
[1680333758864,0.57515951,1822.0,1821.8,5.0665734]
[1680333759155,0.57515951,1822.0,1821.9,1.0]
[1680333759754,0.57515951,1822.0,1821.9,1.08294522]
[1680333760764,0.57515951,1822.0,1821.9,6.57494522]
[1680333763367,0.57515951,1822.0,1821.9,47.37494522]
[1680333765270,2.26017623,1822.1,1821.9,47.37494522]
[1680333765471,0.57515951,1822.0,1821.9,47.37494522]
[1680333765670,0.57515951,1822.0,1821.9,50.58274522]
[1680333766171,2.26017623,1822.1,1821.9,50.58274522]
[1680333766373,0.57515951,1822.0,1821.9,50.58274522]
[1680333766672,0.57515951,1822.0,1821.9,45.09074522]
[1680333767172,1.43717623,1822.1,1821.9,45.09074522]
[1680333767771,0.57515951,1822.0,1821.9,45.09074522]
[1680333768968,1.43717623,1822.1,1821.9,45.09074522]
[1680333769669,0.57515951,1822.1,1821.9,45.09074522]
[1680333770074,1.43717623,1822.1,1821.9,45.09074522]
[1680333770869,0.57515951,1822.1,1821.9,45.09074522]
[1680333771268,0.57515951,1822.1,1821.9,44.09074522]
[1680333771471,1.39415951,1822.0,1821.9,3.29074522]
[1680333773175,2.25553647,1822.0,1821.9,0.08294522]
[1680333773366,1.68101672,1822.0,1821.7,3.2078]
[1680333773675,0.57452584,1821.9,1821.7,3.2078]
[1680333774572,0.819,1821.8,1821.7,3.2078]
[1680333774769,1.819,1821.8,1821.7,3.2078]
[1680333775369,0.819,1821.8,1821.7,3.2078]
[1680333777369,1.39352584,1821.8,1821.7,3.2078]
[1680333777570,2.39352584,1821.8,1821.5,4.0665734]
[1680333777869,2.95254652,1821.8,1821.5,4.0665734]
[1680333778476,1.0,1821.7,1821.5,4.0665734]
[1680333779082,2.95254652,1821.8,1821.5,4.0665734]
[1680333780179,1.0,1821.7,1821.5,4.0665734]
[1680333780378,1.57452584,1821.7,1821.5,3.2078]
[1680333780574,0.57452584,1821.7,1821.5,3.2078]
[1680333783273,0.57452584,1821.7,1821.6,40.8]
[1680333789674,0.57452584,1821.7,1821.6,40.89634732]
[1680333790278,1.39752584,1821.7,1821.6,40.89634732]
[1680333793681,1.13354652,1821.8,1821.6,41.75512072]
[1680333793876,1.13354652,1821.8,1821.7,1.0]
[1680333794179,1.13354652,1821.8,1821.6,1.09634732]
[1680333794374,1.13354652,1821.8,1821.7,40.8]
[1680333794773,1.99556324,1821.8,1821.7,40.8]
[1680333795184,1.99556324,1821.8,1821.6,0.09634732]
[1680333795680,1.99556324,1821.8,1821.6,41.89634732]
[1680333795983,1.99556324,1821.8,1821.7,1.0]
[1680333797083,2.81856324,1821.8,1821.6,40.89634732]
[1680333797274,1.95654652,1821.8,1821.6,40.89634732]
[1680333798083,1.95654652,1821.8,1821.7,1.0]
[1680333798585,2.81856324,1821.8,1821.7,1.0]
[1680333798784,1.95654652,1821.8,1821.6,40.89634732]
[1680333800689,2.81856324,1821.8,1821.6,40.89634732]
[1680333800889,1.95654652,1821.8,1821.6,40.89634732]
[1680333801485,2.81856324,1821.8,1821.6,40.89634732]
[1680333802789,0.57452584,1821.7,1821.6,40.89634732]
[1680333806991,1.39752584,1821.7,1821.6,40.89634732]
[1680333812092,0.57452584,1821.7,1821.6,41.75512072]
[1680333815812,1.13354652,1821.8,1821.6,42.04137853]
[1680333816000,1.13354652,1821.8,1821.7,5.06720913]
[1680333816205,1.13354652,1821.8,1821.7,5.15805246]
[1680333816806,1.99556324,1821.8,1821.7,5.15805246]
[1680333817506,1.4210374,1821.8,1821.7,5.15805246]
[1680333818806,0.57547959,1821.8,1821.7,5.15805246]
[1680333819007,1.43749631,1821.8,1821.7,5.15805246]
[1680333819305,0.57547959,1821.8,1821.7,5.44367454]
[1680333820109,1.68501672,1822.0,1821.7,5.71668965]
[1680333820306,1.68501672,1822.0,1821.9,4.06724303]
[1680333820512,0.86201672,1822.0,1821.9,4.06724303]
[1680333820814,0.86201672,1822.1,1821.9,5.06724303]
[1680333821004,0.86201672,1822.1,1822.0,1.0]
[1680333822902,1.68101672,1822.2,1822.0,1.0]
[1680333824400,1.68101672,1822.2,1822.1,3.2078]
[1680333824604,0.819,1822.2,1822.1,3.2078]
[1680333827022,1.67701672,1822.3,1822.1,3.2078]
[1680333828415,1.67701672,1822.3,1822.2,1.0]
[1680333829225,0.86201672,1822.3,1822.2,1.0]
[1680333832419,0.86201672,1822.4,1822.2,1.0]
[1680333832627,0.86201672,1822.4,1822.1,4.0308]
[1680333833018,0.86201672,1822.4,1822.2,1.0]
[1680333834020,0.86201672,1822.4,1822.1,4.0308]
[1680333834222,0.86201672,1822.4,1822.2,1.0]
[1680333834422,0.86201672,1822.4,1822.2,1.24888579]
[1680333835826,0.86201672,1822.4,1822.2,0.24888579]
[1680333837020,1.68501672,1822.4,1822.2,0.24888579]
[1680333837328,1.68501672,1822.4,1822.3,3.2078]
[1680333838934,0.823,1822.4,1822.3,3.2078]
[1680333839322,1.40955102,1822.5,1822.3,3.2078]
[1680333841629,0.5475343,1822.5,1822.3,3.2078]
[1680333841831,0.86201672,1822.5,1822.3,3.2078]
[1680333842529,1.67801672,1822.6,1822.3,3.2078]
[1680333842733,2.21610403,1822.6,1822.3,3.2078]
[1680333846832,1.40010403,1822.6,1822.5,3.2078]
[1680333847133,1.40010403,1822.6,1822.3,5.0308]
[1680333847338,1.40010403,1822.6,1822.4,1.0]
[1680333848233,1.40010403,1822.6,1822.5,3.2078]
[1680333848432,1.40010403,1822.6,1822.4,1.0]
[1680333849335,1.40010403,1822.6,1822.5,40.8]
[1680333849536,1.40010403,1822.6,1822.5,41.12283826]
[1680333850335,1.40010403,1822.6,1822.5,44.33063826]
[1680333850938,1.67701672,1822.7,1822.5,44.33063826]
[1680333851138,1.67701672,1822.7,1822.6,1.0]
[1680333851634,2.26817153,1822.9,1822.6,6.492]
[1680333851842,0.8604306,1823.1,1822.8,10.3388]
[1680333852136,0.8604306,1823.2,1823.0,4.0308]
[1680333852329,0.8604306,1823.2,1823.1,1.0]
[1680333852738,0.8604306,1823.3,1823.1,1.0]
[1680333857233,5.1642306,1823.4,1823.1,1.0]
[1680333857441,0.8604306,1823.3,1823.1,1.0]
[1680333858142,0.8604306,1823.3,1823.0,5.3038]
[1680333858334,0.8604306,1823.3,1823.1,1.0]
[1680333858533,5.1642306,1823.4,1823.1,1.0]
[1680333859038,0.8604306,1823.3,1823.1,1.0]
[1680333859246,5.1642306,1823.4,1823.1,1.0]
[1680333859639,0.8604306,1823.3,1823.1,1.0]
[1680333859949,5.1642306,1823.4,1823.1,1.0]
[1680333860138,0.8604306,1823.3,1823.1,1.0]
[1680333860343,5.1642306,1823.4,1823.1,1.0]
[1680333861841,1.096,1823.4,1823.1,1.0]
[1680333862151,1.096,1823.4,1823.1,0.99776184]
[1680333862444,1.096,1823.4,1823.2,44.0078]
[1680333862646,1.096,1823.4,1823.3,1.0]
[1680333864548,1.096,1823.4,1823.3,1.52533051]
[1680333865450,1.096,1823.4,1823.3,0.52533051]
[1680333866949,1.091,1823.4,1823.3,0.52533051]
[1680333875154,1.091,1823.4,1823.3,1.52533051]
[1680333875358,1.091,1823.4,1823.3,0.52533051]
[1680333875963,2.091,1823.4,1823.3,0.52533051]
[1680333876153,2.187,1823.4,1823.0,3.2078]
[1680333876355,1.096,1823.2,1823.0,3.2078]
[1680333876659,1.096,1823.2,1823.1,0.58309206]
[1680333876954,1.094,1823.3,1823.1,1.58309206]
[1680333881656,1.094,1823.3,1823.2,1.0]
[1680333881959,1.094,1823.3,1823.2,1.58295907]
[1680333886963,1.9564306,1823.4,1823.2,1.58295907]
[1680333890666,0.8604306,1823.3,1823.2,1.58295907]
[1680333891757,0.8604306,1823.3,1823.2,0.58295907]
[1680333894463,1.1472408,1823.3,1823.2,0.58295907]
[1680333895767,0.86529127,1823.4,1823.3,1.147]
[1680333895972,1.43546466,1824.2,1823.5,5.0]
[1680333896268,0.86098516,1824.3,1824.1,4.3038]
[1680333896460,1.540806,1824.4,1824.2,1.096]
[1680333896659,0.51409612,1824.4,1824.3,4.2998]
[1680333896861,0.51409612,1824.4,1824.3,3.2078]
[1680333897072,0.51409612,1824.4,1824.3,10.50780323]
[1680333898673,0.51409612,1824.4,1824.3,1.087]
[1680333899472,0.51409612,1824.4,1824.1,11.34319613]
[1680333899972,0.51409612,1824.4,1824.3,3.2078]
[1680333901872,0.51409612,1824.4,1824.3,4.3038]
[1680333902163,0.51409612,1824.4,1824.3,5.3038]
[1680333902469,0.51409612,1824.4,1824.3,4.3038]
[1680333903263,0.51409612,1824.4,1824.3,10.05403484]
[1680333903669,0.51409612,1824.4,1824.3,5.75023484]
[1680333903871,0.51409612,1824.4,1824.1,4.2968]
[1680333904074,1.60509612,1824.4,1824.2,44.0078]
[1680333904269,1.60509612,1824.4,1824.2,40.8]
[1680333905377,1.60509612,1824.4,1824.3,1.0]
[1680333905679,1.60509612,1824.4,1824.2,40.8]
[1680333905979,1.60509612,1824.4,1824.3,2.096]
[1680333905980,0.51409612,1824.4,1824.3,2.096]
[1680333906166,0.51409612,1824.4,1824.3,12.17050614]
[1680333907776,0.51409612,1824.4,1824.3,11.17050614]
[1680333907971,0.51409612,1824.4,1824.3,7.96270614]
[1680333908172,0.51409612,1824.4,1824.3,0.77057265]
[1680333908777,0.51409612,1824.4,1824.3,4.97837265]
[1680333909272,3.74982852,1824.8,1824.4,1.0]
[1680333909579,3.74982852,1824.8,1824.5,5.76711334]
[1680333910179,3.2078,1824.8,1824.5,1.096]
[1680333910390,3.2078,1824.8,1824.6,1.0]
[1680333911181,3.2078,1824.8,1824.5,7.41471665]
[1680333911583,4.2988,1824.8,1824.5,6.31871665]
[1680333912083,4.3038,1824.6,1824.4,5.90583939]
[1680333912285,3.2078,1824.6,1824.3,1.86657265]
[1680333912476,7.096,1824.9,1824.5,0.86018107]
[1680333912677,6.096,1824.9,1824.5,1.86018107]
[1680333912885,7.096,1824.9,1824.5,1.86018107]
[1680333913083,7.096,1824.9,1824.5,0.86018107]
[1680333913481,1.0,1824.8,1824.5,0.86018107]
[1680333916586,10.3038,1824.9,1824.5,0.86018107]
[1680333916788,9.3038,1824.9,1824.5,0.86018107]
[1680333917384,1.0,1824.8,1824.5,0.86018107]
[1680333917689,9.3038,1824.9,1824.5,1.86018107]
[1680333917900,9.3038,1824.9,1824.5,0.86018107]
[1680333918182,4.3038,1824.9,1824.5,1.86018107]
[1680333918582,4.3038,1824.9,1824.5,0.86018107]
[1680333919881,4.3038,1824.9,1824.5,1.86018107]
[1680333920080,4.3038,1824.9,1824.5,0.86018107]
[1680333920780,4.3038,1824.9,1824.5,1.86018107]
[1680333920982,4.3038,1824.9,1824.6,6.07062561]
[1680333921591,5.3038,1824.9,1824.5,0.86018107]
[1680333922293,4.3038,1824.9,1824.5,0.86018107]
[1680333922784,5.3038,1824.9,1824.5,0.86018107]
[1680333922985,4.3038,1824.9,1824.5,0.86018107]
[1680333923684,1.0,1824.8,1824.5,0.86018107]
[1680333924091,4.2988,1824.7,1824.5,0.86018107]
[1680333924589,0.15104823,1824.4,1824.2,41.896]
[1680333924793,0.15104823,1824.4,1824.2,1.096]
[1680333927085,0.15104823,1824.4,1824.1,41.896]
[1680333927388,0.15104823,1824.4,1824.2,0.55762264]
[1680333927389,4.2988,1824.3,1824.2,0.55762264]
[1680333927585,4.2988,1824.3,1824.0,3.2078]
[1680333928092,4.2988,1824.3,1824.0,44.0078]
[1680333928682,4.2988,1824.3,1823.8,1.62686089]
[1680333928683,4.2988,1824.3,1823.8,4.83466089]
[1680333928988,2.096,1824.2,1823.7,1.096]
[1680333929493,1.096,1824.2,1823.8,4.2078]
[1680333929986,1.096,1824.2,1823.8,3.2078]
[1680333930486,1.0,1824.3,1823.9,1.089]
[1680333930692,5.45484823,1824.4,1823.9,1.089]
[1680333930888,1.0,1824.3,1823.9,1.089]
[1680333932088,5.45484823,1824.4,1823.9,1.089]
[1680333932291,1.0,1824.3,1823.9,1.089]
[1680333932696,5.45484823,1824.4,1823.9,1.089]
[1680333933194,1.0,1824.3,1823.9,1.089]
[1680333933495,5.45484823,1824.4,1823.9,1.089]
[1680333933796,1.0,1824.3,1823.9,1.089]
[1680333934292,5.45484823,1824.4,1823.9,1.089]
[1680333934592,1.0,1824.3,1823.9,1.089]
[1680333934892,5.45484823,1824.4,1823.9,1.089]
[1680333935099,1.0,1824.3,1823.9,1.089]
[1680333935398,5.45484823,1824.4,1823.9,1.089]
[1680333935698,1.091,1824.2,1823.7,1.096]
[1680333935893,1.0,1824.1,1823.7,1.096]
[1680333936090,4.2988,1824.2,1823.7,1.096]
[1680333936292,4.2988,1824.2,1823.7,2.096]
[1680333936491,4.2988,1824.2,1823.8,3.2078]
[1680333936693,4.2988,1824.2,1823.7,2.096]
[1680333936900,4.2988,1824.2,1823.8,1.0]
[1680333937092,3.2078,1824.2,1823.8,1.096]
[1680333938497,4.06725617,1824.2,1824.0,1.092]
[1680333939402,0.85945617,1824.3,1824.0,1.092]
[1680333940003,0.57281331,1824.2,1824.0,1.092]
[1680333940401,1.43226948,1824.2,1824.0,1.092]
[1680333940590,0.85945617,1824.1,1824.0,1.092]
[1680333942405,0.85945617,1824.1,1824.0,4.8119331]
[1680333942605,0.85945617,1824.1,1824.0,1.6041331]
[1680333947007,0.85945617,1824.1,1824.0,0.5121331]
[1680333947307,0.85945617,1824.1,1823.8,5.87425658]
[1680333947507,0.57389988,1824.0,1823.8,5.87425658]
[1680333948506,0.57389988,1824.0,1823.8,4.87425658]
[1680333952013,0.57389988,1823.9,1823.7,0.57045658]
[1680333954512,0.57389988,1823.9,1823.6,5.73022694]
[1680333954819,0.57389988,1823.9,1823.6,4.87425658]
[1680333955012,1.66489988,1823.9,1823.6,3.77825658]
[1680333955215,0.57389988,1823.8,1823.6,3.77825658]
[1680333955421,1.57389988,1823.8,1823.5,0.57045658]
[1680333955626,0.57389988,1823.8,1823.5,0.57045658]
[1680333957422,0.57389988,1823.8,1823.6,0.2577]
[1680333958422,1.57389988,1823.8,1823.6,0.2577]
[1680333958620,1.66989988,1823.7,1823.6,0.2577]
[1680333959021,1.66989988,1823.7,1823.4,3.77825658]
[1680333959426,1.66989988,1823.7,1823.4,4.77825658]
[1680333959933,1.66989988,1823.7,1823.4,3.77825658]
[1680333960525,1.66989988,1823.7,1823.3,0.85597036]
[1680333960526,0.57389988,1823.6,1823.3,1.57045658]
[1680333960734,2.66989988,1823.7,1823.3,2.42642694]
[1680333960928,2.66989988,1823.7,1823.3,1.42642694]
[1680333961329,3.52935605,1823.7,1823.3,1.42642694]
[1680333961527,0.57389988,1823.6,1823.3,0.57045658]
[1680333961732,3.52935605,1823.7,1823.3,2.42642694]
[1680333962034,2.52935605,1823.7,1823.3,1.42642694]
[1680333962234,2.52935605,1823.7,1823.3,2.42642694]
[1680333962533,2.52935605,1823.7,1823.4,1.0]
[1680333963037,1.66989988,1823.7,1823.4,1.57045658]
[1680333963230,0.57389988,1823.7,1823.4,2.65945658]
[1680333963426,1.43335605,1823.7,1823.4,2.65945658]
[1680333964132,0.57389988,1823.7,1823.4,2.089]
[1680333964728,1.43335605,1823.8,1823.6,1.096]
[1680333964937,0.57389988,1823.8,1823.6,1.096]
[1680333965132,0.57389988,1823.8,1823.6,2.096]
[1680333965425,1.43335605,1823.8,1823.6,1.096]
[1680333965632,1.43335605,1823.8,1823.6,2.096]
[1680333965822,0.57389988,1823.8,1823.6,2.096]
[1680333966423,0.57389988,1823.8,1823.6,1.096]
[1680333967230,0.57389988,1823.7,1823.6,1.096]
[1680333967833,1.43335605,1823.8,1823.6,1.096]
[1680333969131,0.57389988,1823.7,1823.6,1.096]
[1680333970837,0.57389988,1823.8,1823.6,1.096]
[1680333971132,0.57389988,1823.7,1823.5,0.57045658]
[1680333971335,0.57389988,1823.7,1823.5,1.57045658]
[1680333972133,0.57389988,1823.7,1823.6,1.092]
[1680333972334,1.95045617,1823.7,1823.6,0.18356508]
[1680333972734,1.091,1823.7,1823.3,0.57045658]
[1680333972940,0.57407008,1823.5,1823.3,0.57045658]
[1680333973141,1.57407008,1823.5,1823.3,0.57045658]
[1680333973539,0.57407008,1823.5,1823.3,0.57045658]
[1680333974441,0.57407008,1823.5,1823.2,1.42642694]
[1680333975844,1.66507008,1823.7,1823.4,0.57045658]
[1680333976138,0.57407008,1823.6,1823.3,1.57045658]
[1680333976542,0.57407008,1823.6,1823.3,2.66245658]
[1680333976942,0.57407008,1823.6,1823.3,2.65945658]
[1680333978334,0.57407008,1823.6,1823.3,1.65945658]
[1680333978840,0.57407008,1823.6,1823.3,2.65945658]
[1680333979345,0.57407008,1823.6,1823.3,1.65945658]
[1680333980433,1.43517519,1823.6,1823.3,1.089]
[1680333980743,0.57407008,1823.5,1823.3,1.089]
[1680333980945,0.57407008,1823.6,1823.3,1.65945658]
[1680333982433,0.57407008,1823.6,1823.3,1.089]
[1680333982839,0.57407008,1823.6,1823.3,1.65945658]
[1680333983051,0.57080362,1823.6,1823.3,2.65945658]
[1680333983250,0.57080362,1823.6,1823.3,1.65945658]
[1680333984748,1.091,1823.5,1823.3,0.57045658]
[1680333984948,1.096,1823.4,1823.2,6.0]
[1680333985149,1.0,1823.3,1823.2,6.0]
[1680333986349,2.096,1823.4,1823.2,6.0]
[1680333986552,1.0,1823.3,1823.2,6.0]
[1680333987049,4.2078,1823.3,1823.2,6.0]
[1680333987440,3.2078,1823.3,1823.2,6.05717826]
[1680333988653,4.3018,1823.3,1823.2,6.05717826]
[1680333990547,5.70843348,1823.3,1823.2,6.0]
[1680333990747,5.70843348,1823.3,1823.2,1.35098151]
[1680333996856,7.80443348,1823.3,1823.2,1.35098151]
[1680333997060,6.71043348,1823.3,1823.2,1.35098151]
[1680333997256,6.98896376,1823.3,1823.2,1.35098151]
[1680333997457,0.70129239,1823.2,1822.6,1.42642694]
[1680333997757,1.096,1822.7,1822.6,0.57045658]
[1680333997957,1.096,1822.7,1822.5,3.77825658]
[1680334002065,1.096,1822.7,1822.5,3.2078]
[1680334002356,1.096,1822.7,1822.4,1.57045658]
[1680334002752,0.09206849,1822.6,1822.4,1.57045658]
[1680334002954,1.096,1822.7,1822.4,1.57045658]
[1680334003153,0.09029895,1822.6,1822.4,1.57045658]
[1680334003358,1.096,1822.7,1822.4,1.57045658]
[1680334006160,1.096,1822.9,1822.5,3.2078]
[1680334006666,1.096,1822.9,1822.6,1.0]
[1680334008956,5.16401792,1823.2,1822.8,1.087]
[1680334009167,4.3038,1823.2,1822.8,1.087]
[1680334009467,4.3038,1823.2,1822.9,1.0]
[1680334012361,4.3038,1823.2,1822.9,0.99635778]
[1680334017065,4.3038,1823.2,1822.8,2.087]
[1680334020768,4.3038,1823.2,1822.9,1.0]
[1680334024279,4.3038,1823.2,1822.9,1.57045658]
[1680334026983,3.2078,1823.2,1822.9,2.66245658]
[1680334027486,1.40574629,1823.3,1823.1,1.089]
[1680334027786,0.86021792,1823.4,1823.2,1.0]
[1680334027983,0.86021792,1823.4,1823.2,1.0979231]
[1680334028787,0.86021792,1823.5,1823.2,1.0979231]
[1680334029988,0.86021792,1823.4,1823.2,1.0979231]
[1680334030482,0.86021792,1823.5,1823.2,1.66837968]
[1680334030685,0.86021792,1823.5,1823.3,1.096]
[1680334030885,0.55732074,1823.5,1823.3,1.66645658]
[1680334031188,0.86021792,1823.6,1823.3,4.87425658]
[1680334031387,0.86021792,1823.6,1823.5,1.096]
[1680334032289,0.86021792,1823.6,1823.5,1.20631905]
[1680334032486,0.86021792,1823.7,1823.5,1.20631905]
[1680334032687,0.86021792,1823.7,1823.6,1.0]
[1680334033791,4.06801792,1823.8,1823.6,1.0]
[1680334033993,0.86021792,1823.8,1823.6,1.0]
[1680334036393,0.86021792,1823.9,1823.6,1.0]
[1680334036596,0.86021792,1823.9,1823.8,1.096]
[1680334036798,1.41142611,1824.0,1823.8,1.096]
[1680334036994,1.41142611,1824.0,1823.9,1.0]
[1680334037300,0.86021792,1824.0,1823.9,1.0]
[1680334038495,0.86021792,1824.1,1823.9,1.0]
[1680334040405,4.06801792,1824.2,1823.9,1.0]
[1680334042698,4.06801792,1824.2,1823.9,41.8]
[1680334043494,0.86021792,1824.3,1824.0,1.096]
[1680334043696,0.86021792,1824.3,1824.1,1.0]
[1680334044505,4.21906615,1824.4,1824.1,1.0]
[1680334044707,4.21906615,1824.4,1824.1,2.089]
[1680334047095,4.21906615,1824.4,1824.1,1.0]
[1680334047299,4.21906615,1824.4,1824.2,0.32696848]
[1680334049404,3.35884823,1824.4,1824.2,0.32696848]
[1680334050605,4.21906615,1824.4,1824.2,0.32696848]
[1680334056599,3.35884823,1824.4,1824.2,0.32696848]
[1680334056998,4.21906615,1824.4,1824.2,0.32696848]
[1680334057605,3.35884823,1824.4,1824.2,0.32696848]
[1680334058909,3.35884823,1824.4,1824.0,42.896]
[1680334059209,3.35884823,1824.4,1824.1,1.0]
[1680334060511,3.35884823,1824.4,1824.0,2.096]
[1680334061312,3.35884823,1824.4,1824.1,1.0]
[1680334062014,4.21906615,1824.4,1824.0,2.096]
[1680334062315,4.21906615,1824.4,1824.1,0.32747984]
[1680334062616,4.21906615,1824.4,1824.1,1.32747984]
[1680334062914,4.21906615,1824.4,1824.1,0.32747984]
[1680334063114,4.21906615,1824.4,1824.1,1.32747984]
[1680334064509,4.21906615,1824.4,1824.1,0.32747984]
[1680334066410,4.21906615,1824.4,1824.1,1.32747984]
[1680334068012,4.21906615,1824.4,1824.1,0.32747984]
[1680334070315,0.86021792,1824.3,1824.1,0.32747984]
[1680334072608,0.86021792,1824.3,1824.1,1.32747984]
[1680334073813,0.86021792,1824.3,1824.1,0.32747984]
[1680334074518,0.86021792,1824.2,1824.1,0.32747984]
[1680334075818,0.86021792,1824.3,1824.1,0.32747984]
[1680334076112,6.43843539,1824.2,1823.6,0.57045658]
[1680334076314,5.16420334,1824.0,1823.7,0.57045658]
[1680334077321,5.16420334,1824.0,1823.8,0.14530316]
[1680334078415,0.86040334,1823.9,1823.8,0.14530316]
[1680334079920,1.95640334,1824.0,1823.8,0.71575974]
[1680334080115,1.95640334,1824.0,1823.8,0.14530316]
[1680334080321,0.86040334,1823.9,1823.8,0.71575974]
[1680334081027,0.86040334,1823.9,1823.8,0.14530316]
[1680334081821,0.86040334,1823.9,1823.8,0.71575974]
[1680334082521,0.86040334,1824.0,1823.8,5.8755301]
[1680334082722,0.86040334,1824.0,1823.9,0.57159629]
[1680334083113,0.86040334,1824.0,1823.9,1.57159629]
[1680334084918,0.86040334,1824.1,1823.9,1.85597036]
[1680334085122,0.86040334,1824.1,1824.0,0.57161546]
[1680334085321,1.13963539,1824.2,1824.0,0.57161546]
[1680334085712,0.86200952,1824.1,1824.0,0.57161546]
[1680334086921,0.86200952,1824.1,1824.0,3.77941546]
[1680334089328,1.13963539,1824.1,1824.0,0.57161546]
[1680334089525,2.13963539,1824.1,1823.9,0.57161546]
[1680334089721,0.86226847,1824.0,1823.9,0.57161546]
[1680334089924,0.86226847,1824.0,1823.9,0.85597036]
[1680334090226,0.86226847,1824.0,1823.9,41.37185473]
[1680334092229,0.86226847,1824.0,1823.9,41.51733098]
[1680334092422,1.13963539,1824.1,1823.9,41.51733098]
[1680334096935,2.23563539,1824.0,1823.8,0.85597036]
[1680334097130,1.096,1823.8,1823.4,4.34909382]
[1680334097331,1.95844901,1823.6,1823.4,4.34909382]
[1680334098031,1.95844901,1823.6,1823.3,1.14129382]
[1680334100432,1.096,1823.6,1823.3,1.14129382]
[1680334101038,1.6395574,1823.6,1823.2,5.34909382]